Cogmind - Beta 17 @@@ ROGUE MODE // 2026.06.27 @ 22:24:20 Player: H3-MLN Result: Destroyed by G-73 Enforcer with Heavy Laser Performance ------------- Evolutions (9) 4500 Regions Visited (19) 3800 Robots Destroyed (296) 1480 Value Destroyed (17956) 17956 Prototype IDs (140) 2800 Alien Tech Used (8) 1600 Bonus (40341) 40341 TOTAL SCORE: 72477 Bonus ------- High Alert Combat Kills 7478 Follower Combat Kills 3785 Prayed to X0-1V1 5000 Major X0-1V1 Interference 14800 Entered Garrisons 200 Used RIF Installer 500 Entered DSFs 500 Network Hubs Disabled 400 Registered with UFD 300 Met Optimus in HQ 500 Built Enhanced Grunts 300 A7 Reached Mainframe 300 Met R17 at Cetus 500 Used Core Reset Matrix 3000 Destroyed MAIN.C Guards 500 Met MAIN.C 5000 Friendly Fire -2722 Cogmind --------- Core Integrity 0/1570 Matter 300/300 Energy 100/100 System Corruption 4% +Membrane Temperature Cool (9) Movement Core (50) +NEM 1 Location -1/Command Parts ------- > --- POWER (3) -------- (None) > --- PROPULSION (6) --- (None) > --- UTILITY (12) ----- (None) > --- WEAPON (5) ------- (None) > --- INVENTORY (5) ---- Reinforced Antimatter Reactor Energy Well (350) Matter Compressor (250) Heavy Shock Bomb Launcher Peak State ------------ > --- POWER ------------ Improved Quantum Reactor Vortex Chain Reactor > --- PROPULSION ------- Experimental Biometal Heavy Treads High-density Centrium Heavy Treads > --- UTILITY ---------- Coolant Network Advanced Coolant Injector Huge Storage Unit Advanced Weapon Cycler Graphene Brace Experimental EM Shield A0-MCA's Component Scanner X0-1V1's Piety Tracker Microwarp Drive > --- WEAPON ----------- Compact HERF Cannon Chaos Jack Core Stripper Heavy Scimitar of Distortion > --- INVENTORY -------- Light Quantum Reactor Vortex Chain Reactor High-density Centrium Heavy Treads High-density Centrium Heavy Treads Experimental Cooling System Advanced Matter Compressor Advanced Matter Compressor Heavy Regenerative Plating Thermal Barrier Experimental Force Field Transdimensional Reconstructor Navigation Efficiency Matrix Matter Neutralizer Enhanced Nova Cannon Graviton Cannon Heavy Shock Bomb Launcher Guided Micro-nuke Launcher CPS Tube [Rating: 259] Favorites ----------- Power Quantum Reactor Engine Ion Engine Power Core Neutrino Core Reactor Quantum Reactor Propulsion Overtuned Huge Scrapsphere Treads Experimental Biometal Heavy Treads Leg Aluminum Leg Wheel Overtuned Huge Scrapsphere Utility X0-1V1's Piety Tracker Device X0-1V1's Piety Tracker Storage Vampiric Humpback Processor 0b10 Decoder Chip [Looter] Hackware Relay Coupler [NC] Protection Centrium Medium Armor Plating Artifact Phase Redirector Weapon Heavy Wave Gun Energy Gun Heavy Wave Gun Energy Cannon Enhanced Nova Cannon Ballistic Gun Assault Rifle Ballistic Cannon Heavy Linear Accelerator Launcher Heavy Rocket Launcher Special Weapon Advanced Remote Datajack Impact Weapon Core Stripper Slashing Weapon Heavy Scimitar of Distortion Special Melee Weapon Datajack Build | -11 -10 -10 -10 -7 -7 -5 -5 -5 -5 -5 -4 -4 -3 -3 -2 -2 -2 -1 -1 ------- Run | Yrd Mat Min Sub Rec Scr Fac Ext Cet Arc Hub Fac Gar Res DSF Res Qua Sec Acc Com Slots Evolved 18 | . . . . . . 10 . . . . 2 . 2 . 2 . . 2 . Power 1 | . . . . . . 1 . . . . . . . . . . . . . Propulsion 4 | . . . . . . 2 . . . . . . . . . . . 2 . Utility 10 | . . . . . . 6 . . . . 1 . 2 . 1 . . . . Weapon 3 | . . . . . . 1 . . . . 1 . . . 1 . . . . Parts Attached 247 | 7 4 2 13 11 7 29 15 8 . 9 2 10 4 11 22 37 22 13 21 Power 37 | 1 . . 1 2 . 2 2 2 . 1 . 2 . 2 2 8 4 3 5 Engine 7 | 1 . . 1 2 . . . . . . . . . . . 3 . . . Core 6 | . . . . . . 1 2 . . 1 . 1 . 1 . . . . . Reactor 24 | . . . . . . 1 . 2 . . . 1 . 1 2 5 4 3 5 Propulsion 44 | 2 1 . 3 5 1 3 5 2 . 2 . . 1 . 5 3 4 2 5 Treads 21 | . . . . 1 . 2 . 1 . 1 . . . . 3 2 4 2 5 Leg 6 | 2 1 . 3 . . . . . . . . . . . . . . . . Wheel 17 | . . . . 4 1 1 5 1 . 1 . . 1 . 2 1 . . . Hover . | . . . . . . . . . . . . . . . . . . . . Flight . | . . . . . . . . . . . . . . . . . . . . Utility 98 | 2 2 . 2 1 2 16 6 4 . 2 2 4 3 2 10 16 12 4 8 Device 51 | 1 1 . 1 1 . 7 2 . . 2 1 1 2 1 6 7 7 4 7 Storage 9 | 1 1 . 1 . 2 1 1 . . . . . . . . 2 . . . Processor 6 | . . . . . . 2 1 . . . . . . . . 3 . . . Hackware 4 | . . . . . . . 1 . . . 1 . 1 . 1 . . . . Protection 25 | . . . . . . 6 1 4 . . . 3 . 1 3 3 3 . 1 Artifact 3 | . . . . . . . . . . . . . . . . 1 2 . . Weapon 68 | 2 1 2 7 3 4 8 2 . . 4 . 4 . 7 5 10 2 4 3 Energy Gun 17 | 1 . . 1 . 1 3 . . . 2 . 1 . 3 . . . 4 1 Energy Cannon 14 | . . . 2 1 . 1 . . . . . . . 4 2 3 1 . . Ballistic Gun 18 | 1 1 1 2 2 . 3 1 . . 2 . 1 . . . 4 . . . Ballistic Cannon 8 | . . . 1 . . . 1 . . . . 2 . . 1 . 1 . 2 Launcher 4 | . . 1 . . 1 . . . . . . . . . . 2 . . . Special Weapon 3 | . . . 1 . . 1 . . . . . . . . 1 . . . . Impact Weapon 1 | . . . . . . . . . . . . . . . . 1 . . . Slashing Weapon 1 | . . . . . 1 . . . . . . . . . . . . . . Piercing Weapon . | . . . . . . . . . . . . . . . . . . . . Special Melee Weapon 2 | . . . . . 1 . . . . . . . . . 1 . . . . Unidentified Prototypes 17 | . 1 . . . . 1 1 2 . 2 1 . . . 4 3 2 . . Corrupted Parts 2 | . . . . . . . . . . 2 . . . . . . . . . System Corruption 7 | . . . . . . . . . . 7 . . . . . . . . . Parts Lost 97 | . . . 5 6 1 6 2 . . 5 1 7 . . 10 12 8 1 33 Power 20 | . . . . 3 1 . . . . 1 . 1 . . 1 5 2 . 6 Propulsion 14 | . . . 2 2 . 1 1 . . 1 . . . . . 1 1 . 5 Utility 43 | . . . 1 1 . 3 1 . . 1 1 3 . . 8 5 3 1 15 Weapon 20 | . . . 2 . . 2 . . . 2 . 3 . . 1 1 2 . 7 Highest Loss Streak 29 | . . . 3 3 1 6 1 . . 2 1 5 . . 2 4 4 1 29 To Critical Strikes 1 | . . . . . . . . . . . . . . . 1 . . . . Average Backups 19 | 3 7 9 8 5 7 21 28 25 26 24 22 24 24 26 26 25 17 19 21 Power . | . 1 . . . . . . . . . . . . . 1 . 1 . 1 Propulsion 2 | 1 1 2 1 . . . 3 4 5 4 4 4 4 3 4 2 2 1 1 Utility 8 | . 1 2 2 3 4 13 16 13 13 12 13 14 14 14 10 6 4 6 7 Weapon 5 | 1 3 4 3 1 2 6 8 7 8 6 3 4 4 6 6 10 5 7 7 Tool/Special . | . . . . . . . . . . . . . . . . . . . . Unused Backups 59 | . 5 3 4 . 4 1 4 4 . . . 3 . 3 5 1 6 6 10 Power 8 | . . 1 . . . . . . . . . 2 . . . . 1 1 3 Propulsion 11 | . 2 . 1 . 2 . 1 . . . . . . . . . 4 1 . Utility 19 | . 2 1 2 . 2 . 2 3 . . . 1 . 1 1 . . . 4 Weapon 17 | . 1 1 1 . . 1 1 1 . . . . . 1 3 1 . 4 2 Tool/Special 4 | . . . . . . . . . . . . . . 1 1 . 1 . 1 Average Slot Usage (%) 82 | . 99 100 99 90 76 70 79 78 76 80 84 81 76 77 80 78 71 83 81 Engine 4 | . 14 14 14 12 13 . . . . . . . . . . 1 . . . Core 1 | . . . . . . 4 8 4 . 1 5 5 4 4 1 . . . . Reactor 6 | . . . . . . 2 5 12 17 15 10 9 9 9 11 8 7 11 11 Treads 3 | . . . . 3 6 4 1 . . 2 . . . 1 1 4 7 12 11 Leg 5 | . 28 28 27 8 6 . . . . . . . . . . . . . . Wheel 6 | . . . . 11 7 4 18 11 11 7 9 10 9 7 7 4 . . . Device 18 | . 14 14 13 12 14 10 7 5 5 11 23 20 23 27 30 25 27 32 29 Storage 7 | . 14 14 14 14 14 5 5 5 5 5 5 5 4 4 4 4 5 4 3 Processor 4 | . . . . . . 8 12 17 17 14 10 . . . . 4 3 4 3 Protection 4 | . . . . . . 8 5 9 11 5 1 13 9 6 4 2 3 3 5 Energy Gun 3 | . 5 . 2 . 1 12 . . . 3 10 5 4 2 . . . 13 14 Energy Cannon 3 | . . . 8 7 . . . . . . . . . 9 13 6 6 2 1 Ballistic Gun 5 | . 22 27 13 19 . 1 2 4 . 5 9 6 . . . 2 . . . Ballistic Cannon 1 | . . . 2 . . . 4 3 5 . . 2 4 . 1 1 . . . Slashing Weapon 1 | . . . . . 7 . . . . . . . . . . 4 3 . . Peak Build Rating 259 | 7 20 21 30 31 40 128 120 142 138 145 149 142 148 159 191 223 259 236 232 Average Rating 122 | 5 7 20 27 25 30 97 108 130 138 136 144 137 145 151 179 184 216 231 215 On Entrance 110 | . 7 20 21 21 31 35 120 104 138 138 138 142 133 145 157 178 223 220 232 Avg Prop Armor Cover (%) 7 | . . . . 7 11 10 9 3 3 8 . 2 . 7 6 8 . . . Naked Turns 3 | . . . . . . . . . . . . . . . . . . . 3 Heaviest Build 385 | 14 20 21 31 31 38 283 308 312 312 312 298 309 313 337 385 331 213 213 207 Greatest Support 250 | 20 20 20 40 32 28 120 64 64 48 48 48 48 48 40 50 175 180 250 250 Greatest Overweight (x) 19 | . . 1 2 3 1 10 18 11 11 14 6 11 7 15 19 14 1 . 1 Average Overweight (x) 2 | . . . . . . 4 4 5 7 9 6 7 6 8 8 3 . . . Largest Inventory Capacity 35 | 8 10 10 10 10 15 35 35 35 35 35 35 35 35 35 35 35 25 25 25 Average Capacity 25 | 7 8 10 10 10 12 31 35 35 35 35 35 35 35 35 35 31 25 25 24 Most Carried 35 | 5 10 10 10 10 14 35 35 35 35 35 33 35 35 35 35 35 25 25 25 Average Carried 24 | 3 7 9 9 9 10 26 34 34 35 34 31 33 33 34 33 30 23 23 23 Final Capacity 35 | 8 10 10 10 10 15 35 35 35 35 35 35 35 35 35 35 25 25 25 5 Final Carried 35 | 5 10 10 8 10 13 35 35 35 35 31 33 35 34 35 35 25 25 24 4 Scrap Suit Usage (%) 1 | . . . . . . . . . . . . . 100 6 5 . . . . Parts Cannibalized 3 | . . . . . . . . . . . . . 1 1 1 . . . . Class Distribution -------------------- 31% | Mutant 18% | Scavenger-Tank 12% | Alien-Tank 10% | Commander-Mutant 7% | Scavenger-Mutant 6% | Hauler-Tank Dominant Class ---------------- Mutant | -10/Materials Mutant | -10/Mines Mutant | -10/Subcaves Mutant | -7/Recycling Mutant | -7/Scraptown Hauler-Tank | -5/Factory Commander-Mutant | -5/Extension Commander-Mutant | -5/Cetus Commander-Mutant | -5/Archives Scavenger-Mutant | -5/Hub_04(d) Scavenger-Gunner | -4/Factory Scavenger-Tank | -4/Garrison Scavenger-Tank | -3/Research Scavenger-Tank | -3/DSF Scavenger-Tank | -2/Research Scavenger-Tank | -2/Quarantine Mutant | -2/Section 7 Alien-Tank | -1/Access Alien-Tank | -1/Command Resources | -11 -10 -10 -10 -7 -7 -5 -5 -5 -5 -5 -4 -4 -3 -3 -2 -2 -2 -1 -1 ----------- Run | Yrd Mat Min Sub Rec Scr Fac Ext Cet Arc Hub Fac Gar Res DSF Res Qua Sec Acc Com Matter Collected 11587 | 282 379 384 451 811 199 395 932 417 301 893 132 591 . 462 704 1964 760 957 573 Remotely . | . . . . . . . . . . . . . . . . . . . . Salvage Created 20162 | 101 447 269 534 488 161 1714 962 282 . 1169 107 580 . 678 3011 2696 2231 2872 1860 Parts 719 | 8 29 17 40 19 6 59 36 14 . 44 4 18 . 37 132 85 52 71 48 Haulers Intercepted 7 | . 1 . . . . 1 . . . 1 . . . . 1 . . 3 . Recyclers Shooed 14 | . 1 2 . 3 . 3 . . . . . . . . 2 1 . 2 . Parts Field Recycled . | . . . . . . . . . . . . . . . . . . . . Retrieved Matter . | . . . . . . . . . . . . . . . . . . . . Parts Self-Destructed 24 | . . . 24 . . . . . . . . . . . . . . . . Prevented . | . . . . . . . . . . . . . . . . . . . . Parts Restored . | . . . . . . . . . . . . . . . . . . . . Kills | -11 -10 -10 -10 -7 -7 -5 -5 -5 -5 -5 -4 -4 -3 -3 -2 -2 -2 -1 -1 ------- Run | Yrd Mat Min Sub Rec Scr Fac Ext Cet Arc Hub Fac Gar Res DSF Res Qua Sec Acc Com Combat Hostiles Destroyed 219 | . 5 2 15 3 3 14 8 3 . 11 1 8 . 11 34 33 24 30 14 Melee 1 | . . . . . . . . . . . . . . . . 1 . . . Guns 77 | . 5 . 3 3 1 9 1 3 . 11 . 6 . 1 . 4 . 23 7 Cannons 80 | . . . 4 . . . 7 . . . . 2 . 7 31 16 12 . 1 AOE 21 | . . 2 7 . 2 . . . . . . . . 3 . 5 . 1 1 Classes Destroyed 24 | 2 5 1 1 1 2 4 2 . . 2 1 . . . . 2 1 . . Worker 11 | . . . . . . 2 . . . 3 . . . . 4 1 1 . . Builder 11 | . 1 1 . . . 1 . . . 2 . . . . 4 2 . . . Tunneler 5 | 2 . 2 . . . . . . . . . . . . . . . 1 . Hauler 7 | . 1 . . . . 1 . . . 1 . . . . 1 . . 3 . Recycler 25 | 1 2 3 . 4 . 5 4 . . 1 . . . . 1 1 3 . . Mechanic 3 | . 1 . . . . 1 . . . . . . . . . . . 1 . Operator 1 | . . . . . . . . . . . 1 . . . . . . . . Watcher 7 | . 1 . . . . . 1 . . . . . . . 1 1 . 1 2 Swarmer 13 | . . 2 3 . . . . . . . . 3 . 5 . . . . . Grunt 73 | . 5 . 4 . . 3 1 . . 1 . . . . 17 16 11 14 1 Brawler 2 | . . . . . . . . . . . . . . . . 1 1 . . Duelist 6 | . . . . . . . 1 . . . . . . . . 1 1 3 . Sentry 25 | . . . . 3 . 1 6 . . 4 1 4 . . 1 1 2 1 1 Demolisher 1 | . . . . . . . . . . 1 . . . . . . . . . Specialist 6 | . . . . . . . . . . 2 . . . 1 . 1 . . 2 Hunter 30 | . . . . . . 7 . . . . . 1 . 2 6 7 3 4 . Programmer 35 | . . . . . . 2 . . . 2 . . . 2 9 5 2 8 5 Heavy 4 | . . . . . . 1 . . . 1 . . . 1 1 . . . . Behemoth 2 | . . . . . . . . . . . . . . . . . 1 . 1 Cetus Guard 3 | . . . . . . . . 3 . . . . . . . . . . . S7 Guard 3 | . . . . . . . . . . . . . . . . . 3 . . M Guard 2 | . . . . . . . . . . . . . . . . . . . 2 Combat Programmer 2 | . . . . . . . . . . . . . . . . . . . 2 Fortress 1 | . . . . . . . . . . . . . . . . 1 . . . Subdweller 8 | . . . 8 . . . . . . . . . . . . . . . . Explorer 1 | . . . . . 1 . . . . . . . . . . . . . . Scrapper 2 | . . . . . 2 . . . . . . . . . . . . . . Scrapoid 3 | . . . . . . . 1 . . . . 2 . . . . . . . Thug 1 | . . . . . . . 1 . . . . . . . . . . . . Guerrilla 2 | . . . . . . . . 1 . 1 . . . . . . . . . Best Kill Streak 21 | 2 2 3 7 2 2 4 3 2 . 8 9 2 . 8 21 9 7 9 3 Combat Bots Only 10 | . 2 2 7 1 2 3 2 2 . 5 1 2 . 8 10 8 6 7 3 Max Kills in Single Turn 3 | 1 1 1 2 1 2 2 1 1 . 2 1 2 . 3 2 2 2 2 1 Gunslinging 1 | . . . . . . . . . . . . . . . . . . 1 . Exploded 3 | . . 1 2 . 2 . . . . . . . . 3 . 1 . 1 1 Melee 1 | . . . . . . . . . . . . . . . . 1 . . . Uniques/NPCs Destroyed 1 | . . . . . . . . 1 . . . . . . . . . . . A7 (-5/Cetus) Combat | -11 -10 -10 -10 -7 -7 -5 -5 -5 -5 -5 -4 -4 -3 -3 -2 -2 -2 -1 -1 -------- Run | Yrd Mat Min Sub Rec Scr Fac Ext Cet Arc Hub Fac Gar Res DSF Res Qua Sec Acc Com Hostile Shots Fired 2358 | . 16 1 137 126 29 139 42 56 3 157 11 93 . 85 301 206 246 177 533 Missed 619 | . 4 1 51 38 9 34 6 12 2 30 3 30 . 32 55 43 74 50 145 Intercepted 8 | . . . . . . . . . . . . . . . . . . . 8 Hits 1739 | . 12 . 86 88 20 105 36 44 1 127 8 63 . 53 246 163 172 127 388 Melee 13 | . . . . . 4 . . . . . 1 . . . 1 . 3 4 . Projectile 1726 | . 12 . 86 88 16 105 36 44 1 127 7 63 . 53 245 163 169 123 388 AOE 13 | . . . 1 . . . . . . . . . . . . . . . 12 Critical Strikes 91 | . . . . . 3 4 1 7 . 5 1 1 . 2 12 7 16 7 25 Actively Blocked 49 | . . . . . . . . . . 3 . . . . 2 5 16 2 21 Part Disruptions 13 | . . . . . . . . . . . . . . . . 1 3 . 9 Damage Taken 34933 | . 143 . 1054 619 447 2252 656 1272 23 2875 180 1589 . 690 4288 3699 2991 1219 10936 Core 3727 | . 21 . 284 155 185 201 . 127 . 144 39 82 . 56 266 363 230 67 1507 Absorbed by Shields 2487 | . . . . . . . 194 39 . . . . . 215 734 . 236 1069 . Reduced by Siege Mode 1389 | . . . . . . 11 . 30 . 185 . . . . 286 275 25 24 553 Redirected to Core 139 | . . . . . . . . . . . . . . . . 139 . . . Redirected to Shielding 700 | . . . . . . 246 . . . . . . . . 199 . 85 . 170 Ignored by Resistances 2344 | . . . . . . 16 . . . 102 24 22 . . 238 269 1175 477 21 Regen/Repaired (Parts) 3003 | . 32 . . . . . 212 . . . . . 2 10 10 . 491 922 1324 Core Remaining (%) 55 | 100 . . . . 3 . . . . 38 . 80 . 92 . . 19 . . Volleys Fired 987 | 4 35 19 86 25 6 46 56 29 5 38 11 28 . 21 107 127 100 102 142 Largest 5 | 2 2 2 2 2 1 3 3 2 1 3 4 4 . 3 4 3 3 4 5 Hottest 480 | 60 60 40 113 149 80 263 103 70 70 205 240 240 . 360 480 345 345 369 457 Shots Fired 2256 | 8 70 36 104 50 6 124 65 46 5 84 32 79 . 56 268 196 158 342 527 Gun 1405 | 8 70 33 64 43 4 120 14 34 . 84 32 72 . 7 . 37 . 300 483 Cannon 770 | . . . 28 7 . 3 51 12 5 . . 7 . 47 257 113 158 38 44 Launcher 31 | . . 3 7 . 2 . . . . . . . . 2 . 13 . 4 . Special 50 | . . . 5 . . 1 . . . . . . . . 11 33 . . . Kinetic 542 | 4 44 33 65 43 . 14 62 46 5 43 16 53 . 1 12 72 23 2 4 Thermal 1605 | 4 26 . 26 5 4 109 3 . . 41 16 26 . 53 245 75 113 336 523 Explosive 21 | . . 3 7 . 2 . . . . . . . . 2 . 7 . . . Electromagnetic 43 | . . . 6 2 . . . . . . . . . . . 9 22 4 . Robot Hit Streak 92 | 3 8 5 19 15 15 29 10 16 18 31 9 18 . 21 25 15 32 33 92 Robot Miss Streak 5 | 2 4 4 2 2 1 3 3 2 1 2 3 4 . 5 4 3 4 3 2 Penetration Max 2 | . . . . . . . . 2 . 2 . 1 . . . 1 . . . Secondary Targets 18 | . . . . . . . . 2 . 3 1 . . . 5 1 . 5 1 Max Gunslinging Chain 1 | . . . . . . . . 1 . 1 1 . . . 1 1 . 1 1 Shots Hit Robots 1641 | 5 44 21 61 41 8 100 35 38 4 72 21 56 . 30 164 133 108 228 472 Core Hits 637 | 4 23 13 30 13 5 61 18 19 2 37 10 17 . 17 67 75 41 85 100 Critical Kills 39 | . . . 1 . . 4 1 4 . 11 . 2 . . 4 5 4 1 2 Critical Parts Destroyed 18 | . . . . . . . 1 6 . 5 . 3 . . . 3 . . . Critical Strikes 121 | . . . 2 . 1 16 6 10 1 22 3 8 . . 4 10 6 7 25 Burn 50 | . . . . . . 12 . . . 5 3 1 . . . . . 6 23 Meltdown 16 | . . . 1 . . . . . . . . . . . 4 4 4 1 2 Destroy 44 | . . . 1 . . 4 2 10 . 17 . 6 . . . 4 . . . Blast 9 | . . . . . . . 4 . 1 . . 1 . . . 1 2 . . Corrupt 1 | . . . . . . . . . . . . . . . . 1 . . . Sever 1 | . . . . . 1 . . . . . . . . . . . . . . Melee Attacks 62 | . . . . . 4 1 . . . . . . . . . 21 22 2 12 Kinetic 11 | . . . . . . . . . . . . . . . . 1 10 . . Impact . | . . . . . . . . . . . . . . . . . . . . Slashing 29 | . . . . . 3 1 . . . . . . . . . 14 9 2 . Piercing 21 | . . . . . . . . . . . . . . . . 6 3 . 12 Sneak Attacks 16 | . . . . . 1 1 . . . . . . . . . 6 6 2 . Combat Hostiles . | . . . . . . . . . . . . . . . . . . . . Follow-up Attacks . | . . . . . . . . . . . . . . . . . . . . Damage Inflicted 55980 | 59 586 349 1445 875 377 2078 2495 797 406 2069 404 1347 . 1575 8511 7580 4713 7686 12628 Guns 27362 | 59 586 274 536 762 103 1954 234 279 . 1965 404 1130 . 96 . 687 . 6483 11810 Cannons 22493 | . . . 403 113 . 62 2261 518 406 . . 217 . 1270 8511 3485 3917 544 786 Explosions 4233 | . . 75 506 . 267 . . . . 104 . . . 209 . 2587 38 447 . Melee 1861 | . . . . . 7 62 . . . . . . . . . 821 758 194 19 Ramming 31 | . . . . . . . . . . . . . . . . . . 18 13 Kinetic 11920 | 37 344 274 479 762 . 89 2393 797 406 1254 203 1002 . 53 547 2210 1034 . 36 Thermal 37316 | 22 242 . 368 81 103 1927 102 . . 711 201 345 . 1313 7964 1834 2516 7027 12560 Explosive 3551 | . . 75 506 . 267 . . . . . . . . 209 . 2368 38 88 . Electromagnetic 1500 | . . . 92 32 . . . . . 104 . . . . . 347 566 359 . Impact . | . . . . . . . . . . . . . . . . . . . . Slashing 1630 | . . . . . 7 62 . . . . . . . . . 814 553 194 . Piercing 32 | . . . . . . . . . . . . . . . . 7 6 . 19 Highest Corruption 52 | . . . 3 . . 3 3 . 13 24 . . . . 29 52 52 4 4 Average Corruption 15 | . . . 3 . . 2 2 . 13 13 . . . . 11 43 7 3 4 Corruption Purged 3 | . . . . . . . 3 . . . . . . . . . . . . Corruption Blocked . | . . . . . . . . . . . . . . . . . . . . Effects 204 | . . . 1 . . 3 2 . . 26 . . . . 27 92 14 12 27 Message Errors 41 | . . . . . . 1 . . . 3 . . . . 7 21 2 3 4 Matter Fused 46 | . . . . . . 1 . . . 5 . . . . 8 22 3 4 3 Heat Flow Errors 21 | . . . . . . . 1 . . 4 . . . . 3 5 3 1 4 Energy Discharges 14 | . . . . . . . 1 . . 4 . . . . . 5 1 2 1 Parts Rejected 2 | . . . . . . . . . . . . . . . 1 1 . . . Parts Fused 3 | . . . . . . . . . . 1 . . . . . 1 1 . . Data Loss (minor) 20 | . . . 1 . . 1 . . . 1 . . . . 3 8 2 1 3 Data Loss (major) 11 | . . . . . . . . . . 1 . . . . 1 4 1 . 4 Misfires 6 | . . . . . . . . . . 3 . . . . . 2 . . 1 Alerts 3 | . . . . . . . . . . . . . . . 1 2 . . . Weapon Failures 37 | . . . . . . . . . . 4 . . . . 3 21 1 1 7 Overload Shots . | . . . . . . . . . . . . . . . . . . . . Overflow Damage 1196 | . . . 26 18 . . 125 66 68 26 . . . 32 425 323 87 . . Projectiles 944 | . . . 5 18 . . 125 66 68 . . . . 32 425 161 44 . . Explosions 153 | . . . 21 . . . . . . 26 . . . . . 106 . . . Melee 99 | . . . . . . . . . . . . . . . . 56 43 . . Knockbacks 16 | . . . . . . . 3 1 1 . . . . . . 6 5 . . Impact . | . . . . . . . . . . . . . . . . . . . . Kinetic 16 | . . . . . . . 3 1 1 . . . . . . 6 5 . . Secondary . | . . . . . . . . . . . . . . . . . . . . Self-Inflicted Damage 332 | . . . 86 . 35 . . . . 98 . . . . . . 53 54 6 Shots 8 | . . . 3 . 2 . . . . 1 . . . . . . 1 1 . Rammed 3 | . . . . . . . . . . . . . . . . . . 2 1 Targets Rammed 3 | . . . . . . . . . . . . . . . . . . 2 1 Kicked . | . . . . . . . . . . . . . . . . . . . . Crushed . | . . . . . . . . . . . . . . . . . . . . Highest Temperature 416 | . 42 . 1 . 221 276 147 37 16 416 . . . 336 297 142 64 388 336 Average Temperature 90 | . 21 . 1 . 91 97 7 10 9 122 . . . 136 109 43 64 106 112 Received Heat Transfer 4494 | . 78 . 345 162 206 18 152 247 . 597 45 126 . 16 327 234 572 100 1269 Effects 5 | . . . . . . . . . . 2 . . . 1 . . . 1 1 Shutdowns 1 | . . . . . . . . . . 1 . . . . . . . . . Energy Bleed 3 | . . . . . . . . . . 1 . . . 1 . . . 1 . Interference 1 | . . . . . . . . . . . . . . . . . . . 1 Siege Activations 39 | . . . . . . 2 1 1 . 5 . . . 1 7 8 3 5 6 Total Turns 760 | . . . . . . 36 5 30 . 95 . . . 1 147 138 60 65 183 Longest Duration 70 | . . . . . . 19 5 30 . 28 . . . 1 35 36 33 21 70 Martial Activations . | . . . . . . . . . . . . . . . . . . . . Shielding Activations . | . . . . . . . . . . . . . . . . . . . . Robots Disrupted . | . . . . . . . . . . . . . . . . . . . . Combat Hostiles . | . . . . . . . . . . . . . . . . . . . . Robots Corrupted 7 | . . . . . . . . . . . . . . . . 2 4 1 . Combat Hostiles 7 | . . . . . . . . . . . . . . . . 2 4 1 . Parts Fried 7 | . . . 1 . . . . . . . . . . . . 1 3 2 . Impact Corruptions . | . . . . . . . . . . . . . . . . . . . . Robots Melted 31 | . . . 1 . . 6 . . . 1 1 . . . 4 4 4 5 5 Combat Hostiles 28 | . . . 1 . . 5 . . . . 1 . . . 3 4 4 5 5 Parts Melted 148 | . . . . . 2 33 2 1 . 10 5 1 . 2 24 2 1 49 16 Heat Transferred 40695 | 50 550 . 481 111 225 5950 225 . . 2033 850 936 . 1147 6196 1627 2086 8803 9425 Parts Sabotaged 1 | . . . . . . . . . . . . . . . 1 . . . . Parts Stolen . | . . . . . . . . . . . . . . . . . . . . Parts Stripped 57 | . . . . . . . . . . . . . . . . 18 39 . . Power Chain Reactions . | . . . . . . . . . . . . . . . . . . . . Alert | -11 -10 -10 -10 -7 -7 -5 -5 -5 -5 -5 -4 -4 -3 -3 -2 -2 -2 -1 -1 ------- Run | Yrd Mat Min Sub Rec Scr Fac Ext Cet Arc Hub Fac Gar Res DSF Res Qua Sec Acc Com Maximum Alert Level 5 | . . 1 . . . . 2 2 1 5 3 4 3 3 4 5 4 4 3 Low Security (%) 25 | 100 100 93 . 100 . 100 38 . 19 31 . . . . . . . . . Level 1 7 | . . 6 . . . . 42 5 80 5 . . . . 3 . . . . Level 2 14 | . . . . . . . 18 94 . 20 . 4 . 72 54 8 . . . Level 3 32 | . . . . . . . . . . 17 100 17 100 27 15 44 80 69 99 Level 4 19 | . . . . . . . . . . 25 . 77 . . 25 45 19 30 . Level 5 . | . . . . . . . . . . . . . . . . 1 . . . High Security . | . . . . . . . . . . . . . . . . . . . . Max Security . | . . . . . . . . . . . . . . . . . . . . Sterilizations 2 | . . . . . . . . 1 . . . . . 1 . . . . . Peak Influence 1606 | 5 60 212 . 72 . 198 625 594 310 1606 954 1427 802 907 1334 1600 1256 1206 973 Initial 868 | . . . . 7 . . 87 346 194 59 786 646 802 564 510 747 868 746 768 Average 657 | 1 15 118 . 17 . 42 245 492 236 616 835 1178 780 676 781 1119 1023 950 868 Influence Increases 12725 | 15 175 339 198 204 . 469 1170 398 166 2042 348 931 . 423 1402 1938 860 894 753 Destroy 0b10 Robot/C 5800 | . 100 60 180 60 . 280 500 180 80 540 120 440 . 240 680 820 480 600 440 Destroy 0b10 Robot/NC 440 | 15 30 30 . 20 . 50 50 10 . 55 10 . . 5 55 30 20 30 30 Destroy Leader 934 | . 24 10 10 . . 62 46 10 . 132 30 20 . 30 144 94 70 138 114 Allied During Kill 1844 | . . 8 8 . . . 492 155 80 495 104 258 . 17 . 115 3 . 109 Successful Hack 126 | . 21 . . . . 13 12 . . 14 28 12 . . . . 5 21 . Select Force Hacks 120 | . . . . 120 . . . . . . . . . . . . . . . Disable Machine 720 | . . . . . . 15 30 15 . 195 30 15 . 15 90 150 135 . 30 Anti-Garrison Action 350 | . . . . . . . . . . 200 . 150 . . . . . . . Destroy Structure 1398 | . . 19 . 4 . 4 40 28 6 396 26 36 . 86 147 354 117 105 30 Partial Spotted 15 | . . . . . . 15 . . . . . . . . . . . . . Lose Combat Pursuer 210 | . . . . . . 30 . . . 15 . . . 30 30 75 30 . . Active Sensor Use 300 | . . . . . . . . . . . . . . . . 300 . . . Miscellaneous 468 | . . 212 . . . . . . . . . . . . 256 . . . . Influence Decreases 12124 | 15 175 256 265 220 . 290 730 531 482 606 1030 428 675 268 979 1723 1161 938 1352 Entered New Map 5319 | . . . 44 9 . . 92 273 292 111 820 278 625 188 397 583 677 498 432 Time Decay 4653 | 15 175 256 171 152 . 250 522 238 150 278 140 . 50 . 482 490 404 410 470 Lost Part 919 | . . . 30 59 . 40 20 . . 50 10 70 . . 100 120 80 10 330 Lost Ally 733 | . . . 20 . . . 96 20 40 167 60 80 . 80 . 30 . 20 120 Purge Threat 500 | . . . . . . . . . . . . . . . . 500 . . . Squads Dispatched 67 | . 1 . . . . 4 2 1 . 10 4 . . 1 10 14 5 10 5 Investigation 17 | . 1 . . . . . 1 1 . 4 2 . . . 1 4 . 2 1 Extermination 15 | . . . . . . 1 . . . 1 . . . . 3 3 2 2 3 Reinforcement 15 | . . . . . . 3 1 . . 1 . . . 1 3 1 2 2 1 Assault 14 | . . . . . . . . . . 3 . . . . 3 6 1 1 . Garrison 6 | . . . . . . . . . . 1 2 . . . . . . 3 . Intercept . | . . . . . . . . . . . . . . . . . . . . Searches Triggered . | . . . . . . . . . . . . . . . . . . . . Construction Impeded 3 | . . . . . . . 1 . . . . . . . 2 . . . . Haulers Reinforced 3 | . . . . . . . . . . . . . . . . . 1 2 . Active Scanning Responses 3 | . . . . . . . . . . . . . . . . 3 . . . Cargo Convoy Interrupts . | . . . . . . . . . . . . . . . . . . . . Stealth | -11 -10 -10 -10 -7 -7 -5 -5 -5 -5 -5 -4 -4 -3 -3 -2 -2 -2 -1 -1 --------- Run | Yrd Mat Min Sub Rec Scr Fac Ext Cet Arc Hub Fac Gar Res DSF Res Qua Sec Acc Com Distress Signals 20 | . . . . 1 . 3 2 1 . . . . . . 6 2 4 1 . Communications Jammed 112 | . . . . . . . . . . 112 . . . . . . . . . Distress Signals 97 | . . . . . . . . . . 97 . . . . . . . . . Times Spotted 464 | . 11 2 23 3 14 26 25 9 7 23 9 27 . 13 65 57 45 36 69 Peak Tracking Total 58 | . 3 2 7 1 4 5 5 5 2 7 2 9 . 6 12 11 6 5 58 Tactical Retreats 14 | . . . . . 1 2 . . . 1 . . . 1 2 5 2 . . Traps | -11 -10 -10 -10 -7 -7 -5 -5 -5 -5 -5 -4 -4 -3 -3 -2 -2 -2 -1 -1 ------- Run | Yrd Mat Min Sub Rec Scr Fac Ext Cet Arc Hub Fac Gar Res DSF Res Qua Sec Acc Com Traps Triggered 13 | . 1 . . . . . . . . . . 3 . 1 1 3 1 1 2 Indirectly 2 | . . . . . . . . . . . . . . . . 2 . . . Trap Hack Attempts . | . . . . . . . . . . . . . . . . . . . . Triggered . | . . . . . . . . . . . . . . . . . . . . Disarmed . | . . . . . . . . . . . . . . . . . . . . Reprogrammed . | . . . . . . . . . . . . . . . . . . . . Reused . | . . . . . . . . . . . . . . . . . . . . Traps Extracted . | . . . . . . . . . . . . . . . . . . . . Installed 1 | . . . 1 . . . . . . . . . . . . . . . . Triggered . | . . . . . . . . . . . . . . . . . . . . Most Traps Carried 1 | . . . 1 1 1 . . . . . . . . . . . . . . Objects Rigged 1 | . . . . . . . . . . 1 . . . . . . . . . Exploded 1 | . . . . . . . . . . 1 . . . . . . . . . Machines | -11 -10 -10 -10 -7 -7 -5 -5 -5 -5 -5 -4 -4 -3 -3 -2 -2 -2 -1 -1 ---------- Run | Yrd Mat Min Sub Rec Scr Fac Ext Cet Arc Hub Fac Gar Res DSF Res Qua Sec Acc Com Machines Disabled 58 | . . . 2 . 3 1 6 1 . 13 2 2 . 1 6 10 9 . 2 Max in Single Turn 8 | . . . 1 . 1 1 1 1 . 8 1 1 . 1 2 2 1 . 1 Garrison Access 1 | . . . . . . . . . . 1 . . . . . . . . . Garrison Relay 1 | . . . . . . . . . . . . 1 . . . . . . . Phase Generator 1 | . . . . . . . . . . . . 1 . . . . . . . Network Hub 2 | . . . . . . . . . . 2 . . . . . . . . . Machines Repaired . | . . . . . . . . . . . . . . . . . . . . Machines Dismantled . | . . . . . . . . . . . . . . . . . . . . Machines Sabotaged . | . . . . . . . . . . . . . . . . . . . . Overloaded Fab Kills . | . . . . . . . . . . . . . . . . . . . . Hacking | -11 -10 -10 -10 -7 -7 -5 -5 -5 -5 -5 -4 -4 -3 -3 -2 -2 -2 -1 -1 --------- Run | Yrd Mat Min Sub Rec Scr Fac Ext Cet Arc Hub Fac Gar Res DSF Res Qua Sec Acc Com Machines Accessed 57 | . 4 1 . 10 2 2 7 1 . 6 4 2 2 . 5 1 1 6 3 Terminals 37 | . 3 . . 3 . 1 5 1 . 5 1 2 2 . 5 1 . 5 3 Fabricators 1 | . . . . . . 1 . . . . . . . . . . . . . Repair Stations 2 | . 1 . . . . . 1 . . . . . . . . . . . . Recycling Units 11 | . . . . 7 . . 1 . . . 2 . . . . . . 1 . Scanalyzers 1 | . . . . . . . . . . . . . . . . . 1 . . Garrison Access 2 | . . . . . . . . . . 1 1 . . . . . . . . Total Hacks 155 | . 10 1 . 28 6 6 13 2 . 24 13 9 3 . 11 6 6 10 7 Successful 61 | . 5 1 . 15 6 3 6 . . 7 5 2 1 . . . 6 3 1 Failed 94 | . 5 . . 13 . 3 7 2 . 17 8 7 2 . 11 6 . 7 6 Catastrophic 22 | . 1 . . 2 . 1 . 1 . 1 . . 1 . 3 4 . 6 2 Database Lockouts . | . . . . . . . . . . . . . . . . . . . . Manual 66 | . 12 . . 14 . 4 4 1 . 13 5 2 . . . 6 1 2 2 Terminals 106 | . 8 . . 12 . 4 8 2 . 22 6 9 3 . 11 6 . 8 7 Fabricators 2 | . . . . . . 2 . . . . . . . . . . . . . Repair Stations 5 | . 2 . . . . . 3 . . . . . . . . . . . . Recycling Units 25 | . . . . 16 . . 2 . . . 5 . . . . . . 2 . Scanalyzers 6 | . . . . . . . . . . . . . . . . . 6 . . Garrison Access 4 | . . . . . . . . . . 2 2 . . . . . . . . Terminal Hacks 30 | . 3 1 . 4 6 1 2 . . 4 2 2 1 . . . . 3 1 Part Schematic 1 | . 1 . . . . . . . . . . . . . . . . . . Robot Analysis 6 | . 1 . . . 5 . . . . . . . . . . . . . . Prototype ID Bank 3 | . 1 . . 2 . . . . . . . . . . . . . . . Open Door 8 | . . 1 . . . . 2 . . . . 1 . . . . . 3 1 Open DSF 1 | . . . . . . . . . . . . . 1 . . . . . . Branch Access Points 1 | . . . . . . 1 . . . . . . . . . . . . . Emergency Access Points 1 | . . . . . . . . . . 1 . . . . . . . . . Locate Traps 1 | . . . . . . . . . . 1 . . . . . . . . . Maintenance Status 1 | . . . . . . . . . . . 1 . . . . . . . . Registered Components 1 | . . . . . . . . . . . 1 . . . . . . . . Zone Layout 4 | . . . . 2 . . . . . 2 . . . . . . . . . Patrol Navigation 1 | . . . . . . . . . . . . 1 . . . . . . . Proto ID Catalog 1 | . . . . . 1 . . . . . . . . . . . . . . Fabricator Hacks 1 | . . . . . . 1 . . . . . . . . . . . . . Network Status 1 | . . . . . . 1 . . . . . . . . . . . . . Repair Station Hacks 4 | . 2 . . . . . 2 . . . . . . . . . . . . Scan Component 2 | . 1 . . . . . 1 . . . . . . . . . . . . Repair 2 | . 1 . . . . . 1 . . . . . . . . . . . . Recycling Unit Hacks 7 | . . . . 7 . . . . . . . . . . . . . . . Report Inventory 5 | . . . . 5 . . . . . . . . . . . . . . . Retrieve Components 2 | . . . . 2 . . . . . . . . . . . . . . . Scanalyzer 5 | . . . . . . . . . . . . . . . . . 5 . . Insert Component 1 | . . . . . . . . . . . . . . . . . 1 . . Analyze 1 | . . . . . . . . . . . . . . . . . 1 . . Retrieve Study 3 | . . . . . . . . . . . . . . . . . 3 . . Garrison Access Hacks 1 | . . . . . . . . . . . 1 . . . . . . . . Unlock Access 1 | . . . . . . . . . . . 1 . . . . . . . . Unauthorized Hacks 13 | . . . . 4 . 1 2 . . 3 2 . . . . . 1 . . Terminals 3 | . . . . . . . 1 . . 2 . . . . . . . . . Botnet 2 | . . . . . . . 1 . . 1 . . . . . . . . . Detonate 1 | . . . . . . . . . . 1 . . . . . . . . . Fabricators 1 | . . . . . . 1 . . . . . . . . . . . . . Haulers 1 | . . . . . . 1 . . . . . . . . . . . . . Repair Stations . | . . . . . . . . . . . . . . . . . . . . Recycling Units 7 | . . . . 4 . . 1 . . . 2 . . . . . . . . Tunnel 4 | . . . . 4 . . . . . . . . . . . . . . . Scrapoids 3 | . . . . . . . 1 . . . 2 . . . . . . . . Scanalyzers 1 | . . . . . . . . . . . . . . . . . 1 . . Researchers 1 | . . . . . . . . . . . . . . . . . 1 . . Garrison Access 1 | . . . . . . . . . . 1 . . . . . . . . . Jam 1 | . . . . . . . . . . 1 . . . . . . . . . Data Cores Recovered 2 | . . . . . . . 1 . . . 1 . . . . . . . . Used . | . . . . . . . . . . . . . . . . . . . . Hacking Detections 41 | . 4 . . 7 . 1 4 1 . 6 2 2 1 . 5 1 1 4 2 Full Trace Events 8 | . . . . 2 . . . 1 . 2 . . . . 1 1 . 1 . Feedback Events . | . . . . . . . . . . . . . . . . . . . . Feedback Blocked . | . . . . . . . . . . . . . . . . . . . . Robot Schematics Acquired . | . . . . . . . . . . . . . . . . . . . . Robots Built . | . . . . . . . . . . . . . . . . . . . . Authchips . | . . . . . . . . . . . . . . . . . . . . Time . | . . . . . . . . . . . . . . . . . . . . Total Robot Build Rating . | . . . . . . . . . . . . . . . . . . . . Part Schematics Acquired 122 | . 1 . . . . . . . . . . . . . . 120 1 . . Parts Built . | . . . . . . . . . . . . . . . . . . . . Authchips . | . . . . . . . . . . . . . . . . . . . . Time . | . . . . . . . . . . . . . . . . . . . . Total Part Build Rating . | . . . . . . . . . . . . . . . . . . . . Part Studies Acquired 3 | . . . . . . . . . . . . . . . . . 3 . . Parts Repaired 2 | . 1 . . . . . 1 . . . . . . . . . . . . Time 48 | . 26 . . . . . 22 . . . . . . . . . . . . Parts Recycled . | . . . . . . . . . . . . . . . . . . . . Recycled Matter . | . . . . . . . . . . . . . . . . . . . . Retrieved Matter . | . . . . . . . . . . . . . . . . . . . . Retrieved Components 4 | . . . . 4 . . . . . . . . . . . . . . . Parts Scanalyzed 1 | . . . . . . . . . . . . . . . . . 1 . . Part Schematics Acquired 1 | . . . . . . . . . . . . . . . . . 1 . . Parts Damaged 1 | . . . . . . . . . . . . . . . . . 1 . . Bothacking | -11 -10 -10 -10 -7 -7 -5 -5 -5 -5 -5 -4 -4 -3 -3 -2 -2 -2 -1 -1 ------------ Run | Yrd Mat Min Sub Rec Scr Fac Ext Cet Arc Hub Fac Gar Res DSF Res Qua Sec Acc Com Used RIF Installer 1 | . . . . . . . . . . . . 1 . . . . . . . Command Fork 1 | . . . . . . . . . . . . . . . . 1 . . . Robots Hacked 15 | . . . . . 1 . . . . . . . . . 8 6 . . . Non-combat 13 | . . . . . . . . . . . . . . . 8 5 . . . Combat 2 | . . . . . 1 . . . . . . . . . . 1 . . . Robot Hacks Applied 35 | . . . . . 1 . . . . . . . . . 9 25 . . . parse_system 1 | . . . . . 1 . . . . . . . . . . . . . . generate_echo 1 | . . . . . . . . . . . . . . . 1 . . . . hold_bot 1 | . . . . . . . . . . . . . . . 1 . . . . map_walls 3 | . . . . . . . . . . . . . . . 1 2 . . . map_earth 1 | . . . . . . . . . . . . . . . 1 . . . . find_recycling 1 | . . . . . . . . . . . . . . . 1 . . . . purge_threat 5 | . . . . . . . . . . . . . . . . 5 . . . block_reporting 1 | . . . . . . . . . . . . . . . . 1 . . . map_route 1 | . . . . . . . . . . . . . . . 1 . . . . report_schematics 12 | . . . . . . . . . . . . . . . . 12 . . . report_analyses 1 | . . . . . . . . . . . . . . . . 1 . . . link_fov 5 | . . . . . . . . . . . . . . . 3 2 . . . amplify_resonance 1 | . . . . . . . . . . . . . . . . 1 . . . formatsys_high 1 | . . . . . . . . . . . . . . . . 1 . . . Relay Couplers Released 4 | . . . . . . . . . . . . 4 . . . . . . . Machine Destruction 4 | . . . . . . . . . . . . 4 . . . . . . . Attached 1 | . . . . . . . . . . . . . . . 1 . . . . Fabnet Peak Effective % . | . . . . . . . . . . . . . . . . . . . . Robots Rewired 11 | . . . . . . . 11 . . . . . . . . . . . . Allies Hacked 1 | . . . . . . . . . . . . . . . . 1 . . . Hacks Repelled . | . . . . . . . . . . . . . . . . . . . . Allies | -11 -10 -10 -10 -7 -7 -5 -5 -5 -5 -5 -4 -4 -3 -3 -2 -2 -2 -1 -1 -------- Run | Yrd Mat Min Sub Rec Scr Fac Ext Cet Arc Hub Fac Gar Res DSF Res Qua Sec Acc Com Total Allies 55 | . . 2 . . 1 . 20 5 . . 10 2 . . . 5 2 . 8 Largest Group 17 | . . 2 2 . 1 . 17 16 15 13 10 7 4 4 . 4 1 . 4 Highest-Rated Group 962 | . . 45 45 . 47 . 693 962 803 750 470 329 186 186 . 264 69 . 276 Highest-Rated Ally 159 | . . 31 31 . 47 . 159 159 96 96 50 47 47 47 . 69 69 . 69 Initial UFD Resources 42 | . . . . . . 39 39 36 36 36 39 33 37 37 40 40 40 42 42 Total Orders 10 | . . . . . . . . . . 3 . 1 . . . . . 5 1 STAY 2 | . . . . . . . . . . 1 . . . . . . . . 1 ROAM 1 | . . . . . . . . . . . . . . . . . . 1 . FOLLOW 1 | . . . . . . . . . . 1 . . . . . . . . . GUARD 1 | . . . . . . . . . . 1 . . . . . . . . . EXPLORE 4 | . . . . . . . . . . . . . . . . . . 4 . RETURN 1 | . . . . . . . . . . . . 1 . . . . . . . Ally Attacks 711 | . . 2 11 . 11 3 140 76 23 172 39 104 . 16 . 49 6 . 59 Total Damage 17755 | . . 22 125 . 189 . 2976 1573 567 4720 870 1755 . 456 . 1439 223 . 2840 Kills 99 | . . 1 2 . 1 . 23 8 4 23 6 14 . 1 . 8 . . 8 Allies Corrupted 3 | . . . . . . . . . . 1 . . . . . 2 . . . Allies Melted 2 | . . . . . 2 . . . . . . . . . . . . . . X0-1V1 Amusement Gains 406 | . 14 . 10 10 70 5 30 . . 75 10 20 . . 10 56 28 2 66 Good Acts 100 | . 1 1 15 2 . 6 . 1 2 2 1 7 1 1 14 12 17 4 13 Bad Acts 68 | . 1 3 10 2 1 3 8 5 2 . . 2 . . 12 7 1 6 5 Intel | -11 -10 -10 -10 -7 -7 -5 -5 -5 -5 -5 -4 -4 -3 -3 -2 -2 -2 -1 -1 ------- Run | Yrd Mat Min Sub Rec Scr Fac Ext Cet Arc Hub Fac Gar Res DSF Res Qua Sec Acc Com Active Infowar (turns) 7138 | 49 633 . . . . 701 1459 517 302 618 294 86 . . . 604 289 983 603 Optics 3092 | . . . . . . 417 1459 517 302 397 . . . . . . . . . A.S.S. 604 | . . . . . . . . . . . . . . . . 604 . . . Terrain 1278 | . . . . . . . . . . . . . . . . . 289 983 6 Seismic 1279 | 49 633 . . . . . . . . . . . . . . . . . 597 Decoding 3977 | . . . . . . 701 1459 517 302 618 294 86 . . . . . . . Jamming 626 | . . . . . . 13 . . . 401 212 . . . . . . . . Robot Analysis Total 6 | . 1 . . . 5 . . . . . . . . . . . . . . Derelict Logs Recovered 1 | . . 1 . . . . . . . . . . . . . . . . . Drone Launches 16 | . . . . . . 3 . . . . . 10 . . . . . 3 . Drone Recoveries 3 | . . . . . . . . . . . . 2 . . . . . 1 . Decoded 0b10 Intel 160 | . . . . . . 47 49 . . 39 19 6 . . . . . . . Items 160 | . . . . . . 47 49 . . 39 19 6 . . . . . . . Exploration | -11 -10 -10 -10 -7 -7 -5 -5 -5 -5 -5 -4 -4 -3 -3 -2 -2 -2 -1 -1 ------------- Run | Yrd Mat Min Sub Rec Scr Fac Ext Cet Arc Hub Fac Gar Res DSF Res Qua Sec Acc Com Turns Passed 16147 | 111 667 632 1417 509 1509 701 1459 517 302 618 294 1392 104 233 1246 1294 973 983 1186 Spaces Moved 7032 | 71 394 465 801 246 673 223 609 198 53 199 154 677 69 84 446 446 326 418 480 Core 10 | 5 . . . . . . . . . . . . . . . . . . 5 Treads 1799 | . . . . 48 285 19 . . . . . . . . . 236 318 418 475 Legs 1766 | 66 394 465 801 40 . . . . . . . . . . . . . . . Wheels 3449 | . . . . 158 388 204 609 198 53 199 154 677 69 84 446 210 . . . Hover . | . . . . . . . . . . . . . . . . . . . . Flight . | . . . . . . . . . . . . . . . . . . . . Fastest Speed 50 | 50 120 120 120 90 100 115 160 145 157 157 157 145 140 140 150 147 147 146 50 Average Speed 158 | 115 120 120 135 159 163 188 172 156 189 207 157 187 140 156 162 174 180 149 145 Slowest Speed 370 | 120 120 190 260 330 240 330 370 265 265 265 157 265 157 220 272 255 240 155 240 Overloaded Moves . | . . . . . . . . . . . . . . . . . . . . Propulsion Burnouts . | . . . . . . . . . . . . . . . . . . . . Robots Hopped . | . . . . . . . . . . . . . . . . . . . . Potential Cave-ins . | . . . . . . . . . . . . . . . . . . . . Cave-ins Triggered . | . . . . . . . . . . . . . . . . . . . . Microwarps 1 | . . . . . . . . . . . . . . . . . 1 . . Time Travels 1 | . . . . . . . . . . . . . . . 1 . . . . Exploration Rate (%) 42 | 4 56 72 52 57 49 7 69 78 79 28 5 92 4 73 17 49 25 18 23 Regions Visited 19 Branch Regions 11 Pre-discovered Areas 5 | . . 1 . 4 . . . . . . . . . . . . . . . Known Exits Taken 8 | . . . 1 1 . 1 . . . 1 1 . 1 . 1 . 1 . . Unknown Exits Taken 9 | 1 1 1 . . 1 . 1 1 1 . . . . . . 1 . 1 . Scrap Searched 4 | . . 1 . . 3 . . . . . . . . . . . . . . Spaces Dug 74 | . . . 8 . 1 1 7 . . 1 2 . . 1 16 9 11 12 5 Terrain Destroyed 738 | . . 25 21 2 40 1 13 2 . 300 4 3 . 46 47 138 53 30 13 Melee 3 | . . . . . 1 . . . . . . . . . . 2 . . . Projectile 197 | . . . 2 2 . 1 13 . . 8 4 3 . 17 47 34 37 16 13 AOE 536 | . . 25 19 . 39 . . . . 292 . . . 29 . 102 16 14 . Terrain Rammed . | . . . . . . . . . . . . . . . . . . . . Walls Destroyed . | . . . . . . . . . . . . . . . . . . . . Machines Disabled . | . . . . . . . . . . . . . . . . . . . . Actions | -11 -10 -10 -10 -7 -7 -5 -5 -5 -5 -5 -4 -4 -3 -3 -2 -2 -2 -1 -1 --------- Run | Yrd Mat Min Sub Rec Scr Fac Ext Cet Arc Hub Fac Gar Res DSF Res Qua Sec Acc Com Total 10733 | 90 521 504 1019 312 1071 405 929 366 247 327 183 763 76 159 822 851 590 675 823 Wait 1419 | 2 71 14 76 9 349 47 43 76 190 53 6 6 2 9 140 99 41 77 109 Move 7007 | 70 393 464 800 245 672 222 608 197 52 198 154 676 68 83 445 445 318 417 480 Hop . | . . . . . . . . . . . . . . . . . . . . Pick Up 255 | 7 10 2 9 6 13 29 12 14 . 9 5 14 1 12 30 25 17 24 16 Fast Attach 115 | 5 2 . 7 6 1 14 11 7 . 1 . 1 . 8 6 20 17 4 5 Attach 190 | 2 . . 3 2 2 16 7 9 . 12 4 9 2 2 33 30 27 8 22 Detach 74 | . . . 1 . . 11 3 6 . 1 1 1 1 . 11 16 16 . 6 Swap 147 | . 2 2 16 5 4 9 5 2 . 9 2 2 2 8 19 18 11 16 15 Drop 259 | . 8 3 19 6 15 10 18 26 . 6 . 10 . 16 20 42 22 23 15 Fire 987 | 4 35 19 86 25 6 46 56 29 5 38 11 28 . 21 107 127 100 102 142 Melee 61 | . . . . . 4 1 . . . . . . . . . 21 21 2 12 Ram 5 | . . . 1 . . . . . . . . . . . 3 . . . 1 Kick . | . . . . . . . . . . . . . . . . . . . . Crush 2 | . . . . . . . . . . . . . . . . . . 2 . Escape Stasis 32 | . . . . . . . . . . . . 16 . . 8 8 . . . Rewire 166 | . . . . . . . 166 . . . . . . . . . . . . Trap 1 | . . . 1 . . . . . . . . . . . . . . . . Miscellaneous 13 | . . . . 8 5 . . . . . . . . . . . . . . Route ------- -11/Scrapyard -10/Materials (discovered 3 exits: [*Mat] / *Min / [*Sub]) -10/Mines (discovered 2 exits: [*Mat] / [*Sub]) -10/Subcaves (discovered 2 exits: [*Mat] / *Rec) -7/Recycling (discovered 2 exits: *Fac / *Scr) -7/Scraptown -5/Factory (discovered 6 exits: Fac x2 / Upp x2 / *Ext x2) -5/Extension (discovered 2 exits: *Fac / *Cet) -5/Cetus (discovered 2 exits: *Fac / [*Arc]) -5/Archives (discovered 2 exits: *Hub x2) -5/Hub_04(d) -4/Factory -4/Garrison (discovered 3 exits: *Res x3) -3/Research -3/DSF -2/Research (discovered 3 exits: *Acc x2 / *Qua) -2/Quarantine (discovered 3 exits: Acc / *Sec / [*Frg]) -2/Section 7 -1/Access -1/Command (discovered 1 exit: Sur) History --------- Turn | Location | Event 38 | -11/Scrapyard | Discovered new exit (range 13) 112 | -11/Scrapyard | Entered Materials 312 | -10/Materials | Build established: Mutant 444 | -10/Materials | Repaired Aluminum Leg 448 | -10/Materials | Discovered new exit (range 3) 485 | -10/Materials | Discovered new exit (range 8) 737 | -10/Materials | Discovered new exit (range 8) 744 | -10/Materials | Prayed at D.C.S.S. Altar Unit 750 | -10/Materials | Core integrity permanently improved by X0-1V1 (+200) 775 | -10/Materials | X0-1V1 vaporized surrounding terrain (radius 15) 779 | -10/Materials | Entered Mines 833 | -10/Mines | Discovered new exit (range 7) 839 | -10/Mines | X0-1V1 added 0b10 threat records associated with you (considerable) 994 | -10/Mines | Learned location of Zion (-7) 1053 | -10/Mines | Found the Drone Emporium 1061 | -10/Mines | Found Prototype Device 1384 | -10/Mines | Discovered new exit (range 12) 1411 | -10/Mines | Entered Subcaves 1411 | -10/Subcaves | Accompanied by 2 allies 1412 | -10/Subcaves | Approached by a straggling Scientist 1416 | -10/Subcaves | Led the pair of lost Derelicts to an unsafe place 1481 | -10/Subcaves | Discovered new exit (range 11) 1540 | -10/Subcaves | Shifting Twisted Machinery released Shrapnel Trap 1544 | -10/Subcaves | Shifting Twisted Machinery released Riot Gun 1931 | -10/Subcaves | X0-1V1 sent hostile G-34 Mercenary (x5) 1982 | -10/Subcaves | Destroyed 7 combat bots 2034 | -10/Subcaves | A swath of the cavern ceiling suddenly collapsed 2202 | -10/Subcaves | Build established: Scavenger-Mutant 2516 | -10/Subcaves | Heat dissipation permanently improved by X0-1V1 (+30; -150 max core) 2573 | -10/Subcaves | Shifting Twisted Machinery released Flamer 2587 | -10/Subcaves | Shifting Twisted Machinery released Sub. Power Source 2631 | -10/Subcaves | A swath of the cavern ceiling suddenly collapsed 2698 | -10/Subcaves | Shifting Twisted Machinery released Humpback 2698 | -10/Subcaves | Ranged accuracy permanently improved by X0-1V1 (+8%; -80 max core) 2699 | -10/Subcaves | Discovered new exit (range 10) 2716 | -10/Subcaves | Identified exit to Recycling 2716 | -10/Subcaves | X0-1V1 revealed exit location to -7/Recycling 2717 | -10/Subcaves | X0-1V1 activates XOMVISION 2794 | -10/Subcaves | X0-1V1 tapped a No Entrance sign 2801 | -10/Subcaves | X0-1V1 sent you into danger 2820 | -10/Subcaves | Core integrity fell below 50% 2827 | -10/Subcaves | Core integrity fell below 20% 2828 | -10/Subcaves | Entered Recycling 2829 | -7/Recycling | Identified exit to Scraptown 2829 | -7/Recycling | X0-1V1 revealed exit location to -7/Scraptown 2852 | -7/Recycling | Lost 3 parts (1n2w) 2863 | -7/Recycling | Build established: Mutant 3177 | -7/Recycling | Discovered new exit (range 7) 3223 | -7/Recycling | Lost 3 parts (1p2n) 3282 | -7/Recycling | Scanned before Scraplab entrance 3315 | -7/Recycling | Entered Scraplab 3337 | -7/Recycling | Entered Scraptown 3394 | -7/Scraptown | Received an X-ray algorithm 3449 | -7/Scraptown | Visited CPS Storage 3506 | -7/Scraptown | Visited UFD Registry 3506 | -7/Scraptown | Registered with UFD as "Arccell" 3534 | -7/Scraptown | Visited Cyclists 3549 | -7/Scraptown | Visited TADAMA 3618 | -7/Scraptown | Visited IN-MT5's Study 3762 | -7/Scraptown | Visited Curators Association 3810 | -7/Scraptown | Visited Botcube Research 3825 | -7/Scraptown | Found Botcube 3867 | -7/Scraptown | Visited Infowarlord's Domain 3930 | -7/Scraptown | Visited Analyses Database 3981 | -7/Scraptown | Visited Observation Area 4002 | -7/Scraptown | Visited DA-N13 Charitable Foundation 4012 | -7/Scraptown | Found DCF Scrap (31 items) 4071 | -7/Scraptown | Visited A0-MCA Data Center 4077 | -7/Scraptown | Given a C+ rating by A0-MCA 4082 | -7/Scraptown | Found A0-MCA's Component Scanner 4103 | -7/Scraptown | Visited Chapter 10 4121 | -7/Scraptown | Visited Science Guys 4307 | -7/Scraptown | Met Optimus 4307 | -7/Scraptown | Accepted into 0bPrime 4707 | -7/Scraptown | Civil war broke out across Scraptown 4712 | -7/Scraptown | Found Vmp. Humpback 4756 | -7/Scraptown | Found Scrap Suit 4787 | -7/Scraptown | Lost 8 allies 4797 | -7/Scraptown | Botcube activated 4807 | -7/Scraptown | Botcube completed mutation into legged form (unarmed). 4835 | -7/Scraptown | Discovered new exit (range 8) 4846 | -7/Scraptown | Entered Factory 4846 | -5/Factory | Evolved 10 slots: Power x1, Propulsion x2, Utility x6, Weapon x1 4847 | -5/Factory | Identified Bomb Drone Bay 5055 | -5/Factory | Identified exit to Upper Caves 5055 | -5/Factory | Identified exit to Extension 5084 | -5/Factory | X0-1V1 upgraded hostiles (x1) 5104 | -5/Factory | Attached CPS modules to H-81 Overseer 5134 | -5/Factory | Lost 3 allies 5141 | -5/Factory | Lost 6 parts (1n3u2w) 5218 | -5/Factory | Found Active Sensor Suite 5286 | -5/Factory | Build established: Hauler-Tank 5307 | -5/Factory | Identified exit to Factory 5307 | -5/Factory | X0-1V1 revealed exit location to -4/Factory 5413 | -5/Factory | X0-1V1 revealed exit location to -4/Factory 5547 | -5/Factory | Entered Extension 5607 | -5/Extension | Rescued a captive Derelict 5608 | -5/Extension | Rescued a captive Derelict 5728 | -5/Extension | Rescued a captive Derelict 5751 | -5/Extension | X0-1V1 sent someone to clean up after you 5888 | -5/Extension | Rescued A7 5993 | -5/Extension | X0-1V1 mutated your Weapon slot to Power slot 6262 | -5/Extension | Repaired Arm. Huge Wheel 6300 | -5/Extension | Scrapoids reinforcements arrived? 6333 | -5/Extension | X0-1V1 tapped a No Entrance sign 6592 | -5/Extension | Build established: Commander-Mutant 6679 | -5/Extension | Spotted B-75 Beast 6688 | -5/Extension | X0-1V1 announced a LAN party 6710 | -5/Extension | Allies destroyed B-75 Beast 6718 | -5/Extension | Spotted B-75 Beast 6730 | -5/Extension | Allies destroyed B-75 Beast 6755 | -5/Extension | Lost 6 allies 6970 | -5/Extension | Discovered new exit (range 14) 6972 | -5/Extension | Discovered exit to Factory (range 13) 7006 | -5/Extension | Entered Cetus 7006 | -5/Cetus | Accompanied by 13 allies (A7) 7011 | -5/Cetus | Acquired a Cetus Manufacturing Module code from A7 7022 | -5/Cetus | Spotted Cetus Guard 7023 | -5/Cetus | Spotted Cetus Guard 7026 | -5/Cetus | Spotted Cetus Guard 7027 | -5/Cetus | Spotted Cetus Guard 7034 | -5/Cetus | Allies destroyed Cetus Guard 7037 | -5/Cetus | Allies destroyed Cetus Guard 7037 | -5/Cetus | Allies destroyed Cetus Guard 7047 | -5/Cetus | Allies destroyed Cetus Guard 7127 | -5/Cetus | Found Scrap Suit 7185 | -5/Cetus | Started Cetus Manufacturing Module 7210 | -5/Cetus | Manufactured an Enhanced Grunt 7210 | -5/Cetus | Escorted A7 to Cetus Mainframe 7218 | -5/Cetus | Discovered new exit (range 21) 7234 | -5/Cetus | Discovered exit to Factory (range 8) 7234 | -5/Cetus | Spotted Cetus Guard 7234 | -5/Cetus | Spotted Cetus Guard 7234 | -5/Cetus | Spotted Cetus Guard 7234 | -5/Cetus | Spotted Cetus Guard 7234 | -5/Cetus | X0-1V1 sent you into danger 7235 | -5/Cetus | Manufactured an Enhanced Grunt 7247 | -5/Cetus | Destroyed Cetus Guard 7249 | -5/Cetus | Allies destroyed Cetus Guard 7253 | -5/Cetus | Destroyed Cetus Guard 7260 | -5/Cetus | Manufactured an Enhanced Grunt 7266 | -5/Cetus | Core integrity fell below 50% 7274 | -5/Cetus | Destroyed Cetus Guard 7277 | -5/Cetus | Met Revision 17 7285 | -5/Cetus | Manufactured an Enhanced Grunt 7289 | -5/Cetus | X0-1V1 made a cryptic comment about sterilization and BL-4Z3 7310 | -5/Cetus | Manufactured an Enhanced Grunt 7446 | -5/Cetus | Sterilization system engaged 7446 | -5/Cetus | Non-combat units ordered to evacuate 7465 | -5/Cetus | Murdered A7 7468 | -5/Cetus | Extracted ID and sensor layout for unrecognized location from A7's data core 7523 | -5/Cetus | Entered Archives 7523 | -5/Archives | Accompanied by 15 allies 7570 | -5/Archives | Discovered new exit (range 22) 7593 | -5/Archives | Discovered new exit (range 22) 7644 | -5/Archives | Core integrity restored by X0-1V1 (+242) 7818 | -5/Archives | System corruption reached 10% 7825 | -5/Archives | Entered Hub_04(d) 7825 | -5/Hub_04(d) | Accompanied by 13 allies 7975 | -5/Hub_04(d) | Garrison activated, responded to threat 8079 | -5/Hub_04(d) | Lost 3 allies 8125 | -5/Hub_04(d) | First assault squad dispatched 8247 | -5/Hub_04(d) | Discovered exit to Factory (range 9) 8255 | -5/Hub_04(d) | Lost 6 allies 8265 | -5/Hub_04(d) | Network Hub disabled 8308 | -5/Hub_04(d) | Found Prototype Device 8357 | -5/Hub_04(d) | Build established: Scavenger-Mutant 8390 | -5/Hub_04(d) | Weapon slot count temporarily expanded by X0-1V1 (+1) 8414 | -5/Hub_04(d) | Lost 3 allies 8414 | -5/Hub_04(d) | Network Hub disabled 8443 | -5/Hub_04(d) | Entered Factory 8443 | -4/Factory | Evolved 2 slots: Utility x1, Weapon x1 8495 | -4/Factory | Scrapoids reinforcements arrived? 8527 | -4/Factory | Identified Exp. Thermal Shield 8626 | -4/Factory | Scrapoids reinforcements arrived? 8637 | -4/Factory | Garrison activated, responded to threat 8682 | -4/Factory | Lost 3 allies 8734 | -4/Factory | Identified exit to Garrison 8737 | -4/Factory | Entered Garrison 8737 | -4/Garrison | Accompanied by 7 allies 8775 | -4/Garrison | Triggered checkpoint 8805 | -4/Garrison | Garrison Relay disabled 8814 | -4/Garrison | X0-1V1 sent you into danger 8814 | -4/Garrison | Triggered checkpoint 8816 | -4/Garrison | Triggered checkpoint 8818 | -4/Garrison | Triggered checkpoint 8856 | -4/Garrison | Lost 5 parts (1p3u1w) 8859 | -4/Garrison | Lost 8 allies 8869 | -4/Garrison | Triggered checkpoint 8961 | -4/Garrison | Triggered checkpoint 9011 | -4/Garrison | Discovered new exit (range 10) 9034 | -4/Garrison | Identified exit to Research 9034 | -4/Garrison | X0-1V1 revealed exit location to -3/Research 9043 | -4/Garrison | Triggered checkpoint 9126 | -4/Garrison | Build established: Scavenger-Tank 9148 | -4/Garrison | X0-1V1 revealed exit location to -3/Research 9213 | -4/Garrison | Triggered checkpoint 9302 | -4/Garrison | X0-1V1 destroyed Phase Generator 9302 | -4/Garrison | Phase Generator disabled 9371 | -4/Garrison | Triggered checkpoint 9401 | -4/Garrison | Rescued a captive Derelict 9401 | -4/Garrison | Rescued a captive Derelict 9819 | -4/Garrison | Triggered checkpoint 9952 | -4/Garrison | Installed Relay Interface Framework 10129 | -4/Garrison | Entered Research 10129 | -3/Research | Accompanied by 4 allies 10129 | -3/Research | Evolved 2 slots: Utility x2 10142 | -3/Research | Found System Mapper 10233 | -3/Research | Identified exit to DSF 10233 | -3/Research | Entered DSF 10233 | -3/DSF | Accompanied by 4 allies 10243 | -3/DSF | Additional patrols routed to DSF 10357 | -3/DSF | Lost 3 allies 10377 | -3/DSF | Discovered new exit (range 17) 10389 | -3/DSF | Found Heavy Servo Lattice 10392 | -3/DSF | Found Heavy Servo Lattice 10394 | -3/DSF | Found Heavy Servo Lattice 10414 | -3/DSF | Sterilization system engaged 10434 | -3/DSF | Ambient heat levels rising (+10) 10449 | -3/DSF | Ambient heat levels rising (+10) 10459 | -3/DSF | Destroyed 8 combat bots 10464 | -3/DSF | Ambient heat levels rising (+10) 10466 | -3/DSF | Entered Research 10466 | -2/Research | Evolved 2 slots: Utility x1, Weapon x1 10472 | -2/Research | X0-1V1 sent you to a vault 10475 | -2/Research | Found Alien Artifact 10484 | -2/Research | Found Prototype Device 10484 | -2/Research | Identified Chronowheel 10484 | -2/Research | Activated Chronowheel 10484 | -2/Research | Spacetime reconverged on an earlier point 10486 | -2/Research | Found Chaos Jack 10510 | -2/Research | Found Prototype Device 10511 | -2/Research | Identified Exp. Actuator Array 10716 | -2/Research | First assault squad dispatched 10773 | -2/Research | X0-1V1 downgraded hostiles (x2) 10809 | -2/Research | Identified exit to Access 10809 | -2/Research | X0-1V1 revealed exit location to -1/Access 10857 | -2/Research | Destroyed 10 combat bots 10998 | -2/Research | X0-1V1 whisked you away to safety 11203 | -2/Research | Discovered exit to Access (range 24) 11314 | -2/Research | Identified exit to Quarantine 11314 | -2/Research | X0-1V1 revealed exit location to -2/Quarantine 11347 | -2/Research | X0-1V1 added 0b10 threat records associated with you (major) 11444 | -2/Research | System corruption reached 10% 11502 | -2/Research | Found Prototype Launcher 11503 | -2/Research | X0-1V1 vaporized surrounding terrain (radius 24) 11712 | -2/Research | Entered Quarantine 11775 | -2/Quarantine | Found Alien Impact Weapon 11808 | -2/Quarantine | Found Alien Artifact 11808 | -2/Quarantine | Identified Phase Redirector 11877 | -2/Quarantine | X0-1V1 sent you into danger 11962 | -2/Quarantine | First assault squad dispatched 12009 | -2/Quarantine | Identified Gui. Micro-nuke Launcher 12074 | -2/Quarantine | Lost 3 parts (2p1u) 12168 | -2/Quarantine | System corruption reached 30% 12228 | -2/Quarantine | Found Alien Artifact 12300 | -2/Quarantine | Core integrity fell below 50% 12334 | -2/Quarantine | X0-1V1 sent allied H-88 Terminator (x4) 12337 | -2/Quarantine | Lost 4 parts (1p1n2u) 12375 | -2/Quarantine | P-80 Master assimilated allied H-88 Terminator 12380 | -2/Quarantine | P-80 Master assimilated allied H-88 Terminator 12427 | -2/Quarantine | Lost 3 parts (1p1u1w) 12559 | -2/Quarantine | X0-1V1 revealed exit location to -1/Access 12616 | -2/Quarantine | Destroyed 8 combat bots 12713 | -2/Quarantine | Expanded RIF knowledge: Command Fork 12801 | -2/Quarantine | Identified Core Stripper 12818 | -2/Quarantine | Spotted Fortress 12824 | -2/Quarantine | Destroyed Fortress 12835 | -2/Quarantine | Found Exp. Force Field 12842 | -2/Quarantine | Found Vortex Chain Reactor 12850 | -2/Quarantine | Found Centrium Heavy Armor Plating 12863 | -2/Quarantine | Found Exp. EM Shield 12867 | -2/Quarantine | Found Vortex Chain Reactor 12881 | -2/Quarantine | Found Thermal Barrier 12997 | -2/Quarantine | Discovered new exit (range 6) 12997 | -2/Quarantine | Discovered new exit (range 7) 13006 | -2/Quarantine | Entered Section 7 13016 | -2/Section 7 | Spotted S7 Guard 13022 | -2/Section 7 | Destroyed S7 Guard 13027 | -2/Section 7 | Found Hvy. Regenerative Plating 13031 | -2/Section 7 | X0-1V1 activates XOMVISION 13036 | -2/Section 7 | Found Alien Artifact 13036 | -2/Section 7 | Identified Core Physics Calibrator 13044 | -2/Section 7 | Identified Core Reset Matrix 13044 | -2/Section 7 | Identified Transdimensional Reconstructor 13044 | -2/Section 7 | Used Core Reset Matrix 13048 | -2/Section 7 | Detected hypermatrix surge 13048 | -2/Section 7 | Sensed 21 artifacts in vicinity 13214 | -2/Section 7 | Found Microwarp Drive 13219 | -2/Section 7 | X0-1V1 turns hostiles against one another 13240 | -2/Section 7 | Weapon slot count temporarily expanded by X0-1V1 (+3) 13427 | -2/Section 7 | Spotted S7 Guard 13461 | -2/Section 7 | Found Navigation Efficiency Matrix 13475 | -2/Section 7 | Spotted B-90 Cyclops 13496 | -2/Section 7 | Destroyed B-90 Cyclops 13515 | -2/Section 7 | X0-1V1 downgraded hostiles (x4) 13525 | -2/Section 7 | Lost 4 parts (1p1n1u1w) 13609 | -2/Section 7 | Destroyed S7 Guard 13614 | -2/Section 7 | Found Hvy. Regenerative Plating 13654 | -2/Section 7 | Lost 4 parts (1p2u1w) 13720 | -2/Section 7 | Found Integrated Reactor 13720 | -2/Section 7 | Installed Integrated Reactor, increased core energy generation (+10) 13756 | -2/Section 7 | First assault squad dispatched 13858 | -2/Section 7 | Discovered exit to Access (range 11) 13869 | -2/Section 7 | Core integrity fell below 20% 13914 | -2/Section 7 | Spotted S7 Guard 13919 | -2/Section 7 | Destroyed S7 Guard 13934 | -2/Section 7 | X0-1V1 foreshadows a heat wave 13943 | -2/Section 7 | Found Core Membrane 13943 | -2/Section 7 | Installed Core Membrane, gained immunity to corruption 13970 | -2/Section 7 | Found Hvy. Regenerative Plating 13979 | -2/Section 7 | Entered Access 13979 | -1/Access | Evolved 2 slots: Propulsion x2 14191 | -1/Access | Build established: Alien-Tank 14229 | -1/Access | First assault squad dispatched 14579 | -1/Access | Garrison activated, responded to threat 14636 | -1/Access | Destroyed 7 combat bots 14953 | -1/Access | Discovered new exit (range 7) 14962 | -1/Access | Entered Command 15039 | -1/Command | X0-1V1 sent hostile X-82 Rainmaker (x2) 15190 | -1/Command | X0-1V1 sent you to a vault 15316 | -1/Command | Spotted B-99 Colossus 15341 | -1/Command | Destroyed B-99 Colossus 15639 | -1/Command | Spotted Combat Programmer 15639 | -1/Command | Spotted Combat Programmer 15645 | -1/Command | Destroyed Combat Programmer 15648 | -1/Command | Destroyed Combat Programmer 15660 | -1/Command | Spotted M Guard 15662 | -1/Command | Spotted M Guard 15685 | -1/Command | Destroyed M Guard 15711 | -1/Command | Destroyed M Guard 15711 | -1/Command | All MAIN.C guards destroyed 16043 | -1/Command | X0-1V1 activates XOMVISION 16050 | -1/Command | Identified exit to Surface 16050 | -1/Command | X0-1V1 revealed exit location to -0/Surface 16058 | -1/Command | Met MAIN.C 16068 | -1/Command | 0b10 Conduit disabled 16088 | -1/Command | Weapon slot count temporarily expanded by X0-1V1 (+1) 16106 | -1/Command | X0-1V1 whisked you away to safety 16111 | -1/Command | X0-1V1 sent you into danger 16136 | -1/Command | Installed Navigation Efficiency Matrix, process failed with unexpected side effects 16143 | -1/Command | Core integrity fell below 50% 16146 | -1/Command | Emitted hypermatrix ping 16147 | -1/Command | Core integrity fell below 20% 16148 | -1/Command | Destroyed by G-73 Enforcer with Heavy Laser Last Messages --------------- (+3). 16142_ Core Membrane filtered system corruption (3). 16142_ Adv. Heat Sink destroyed. 16143_ Acquired 5 matter. 16143_ Dropped Huge Storage Unit. 16144_ System corrupted: Matter fused (-6). 16144_ Acquired 16 matter. 16144_ Enh. Hardcell Cannon destroyed. 16144_ P-80 Master resets G-73 Enforcer, system corruption cleaned. 16144_ Graphene Brace destroyed. 16145_ Adv. Weapon Cycler destroyed. 16145_ Arm. Treads destroyed. 16146_ Emitted hypermatrix ping. 16146_ G-73 Enforcer destroyed. 16147_ Slammed into G-73 Enforcer. 16147_ Critical hit (Burn: +37). 16147_ G-73 Enforcer IFF system glitched. 16148_ X0-1V1 laughs nastily! Map ----- +----------------------------------------------------+ | ?????????????????????????????????????????????????# | | ?????????????????????????????????????????????????# | | ?????????????????????????????????????????????????# | | ?????????????????????????????????????????????????# | | ?????????????????????????????????????????????????# | | ???????????????????????????????????????????###???# | | ???????????????????????????????????????###?# #???# | | ?????????????????????????????????????###"###"##### | | ?????????????????????????????????????# # | | ?????????????????????????????????????# T" # | | ?????????????????????????????????????# "" + | | ?????????????????????????????????????# # | | ?????????????????????????????????????## ## | | ??????????????????????????????????????# ## | | ????????????????????????????????#?w???# ## " "" | | ????????????????????????????????# ????# ## "R"" | | ???????########################### #### ## """ | | ???????# # # =######### | | ???????# # " %#???????? | | ???????# # !#???????? | | ???????# ppp p g # #???????? | | ???????????####p###g####pg######## #### k######### | | ???????????????????????#g #?????# ??# !% | | ???????????????p???????#gp#?????#?w?### ^ # | | ???????????????p??#?g??#g%#???????????# = # | | ???????????????p??# ???#g@#??????????## %! # | | ???????????????p??#gp###g=#??????????# # | | ???????????????p??#gp#g!%[##?????????# # | | ???????????????p?## gg*g=g!#?????????# # | | ???????????????pp# =g]*=g*#?????????# " | | ?????????????????# gg!ggg[#?????????# # | | ???????????????pp# ggggg=g#?????????# # | | ?????????????????# g]gg%g#???????### %[ | | ???????????????p?# g #g g #???????#% =! | | ?????????????????# # #???????#! ] ! | | ?????????????????###########???????### | | ???????????????????????????????????# " = | | ???????????????????????????????????### | | ?????????????????????????????????????# | | ?????????????????????????????????????# | | ?????????????????????????????????????# | | ?????????????????????????????????????########"""## | | ????????????????????????????????????????# * | | ????????????????????????????????????????# = %!| | | ????????????????????????????????????????# | | ????????????????????????????????????????#= = | | ???????????????????????????????????????## "" " | | ???????????????????????????????????????# = """T" | | ???????????????????????????????????????########### | | | +----------------------------------------------------+ Best States ------------- Heat Dissipation 224 Coolant Potential 100 Energy Generation 90 Energy Capacity 2150 Matter Stores 1400 Matter Capacity 1400 Sight Range 22 Robot Scan Range 20 Terrain Scan Range 24 Terrain Scan Density 10 Jamming Range 16 Base Temperature (-) 200 Armor Coverage 2400 Resistance: TH 50 Resistance: EM 75 Utility Shielding 66 Weapon Shielding 90 Point Defense Rating 240 Weapon Cycling 30 Phase Shifting 15 Evasion (%) 55 Targeting Accuracy 8 Melee Accuracy 8 Core Analysis 6 Recoil Reduction 6 Offensive Hacking 20 Relay Coupler Types 1 Relay Coupler Value 99 Item Schematics ----------------- CPS Tube | -2/Section 7 | Scanalyzed Robot Schematics ------------------ None Fabricated ------------ Nothing Repaired ---------- Aluminum Leg | 64% | -10/Materials Arm. Huge Wheel | 15% | -5/Extension Studied --------- Enh. Nova Cannon | -2/Section 7 | Hacked Lgt. Quantum Reactor | -2/Section 7 | Hacked Matter Neutralizer | -2/Section 7 | Hacked Alien Tech Used ----------------- Phase Redirector Core Stripper Core Physics Calibrator Core Reset Matrix Microwarp Drive Integrated Reactor Core Membrane Navigation Efficiency Matrix Achievements -------------- Chaos Is Inevitable Challenges ------------ None Game ------ Seed SubatomicWarlordCycler Manual? 0 Play Time 06:06:58 Cumulative 1656.8 hours Start 2026.06.27 @ 15:25:17 End 2026.06.27 @ 22:24:20 Sessions 1 Manual Loads 0 Difficulty Rogue Special Mode None Game No. 511 Rogue 503 Adventurer 4 Explorer 4 Win Type - Total 63 Types 30/8/3/4/1/4/6/2/3/2 Lore% 97 Gallery% 95 Achievement% 90 Wizard Run 0 Options --------- Layout 2 ASCII 0 Keyboard 0 Movement Numpad Keybinds 0 Fullscreen 2 Font 24/Smallcaps Map View 50x44 Zoom Use 0% Tactical HUD 1 Map Filters NONE Filters NONE Steam 1 RUN: aa7de461-5952-47ba-82dd-bd5c081faf6d